bitfinex-derivatives/quotes_SOLF0:USTF0_20241217
["timestamp","ask_amount","ask_price","bid_price","bid_amount"]
[1734427567407,4.5474,219.92,219.79,1.13809613]
[1734427567607,4.5474,219.92,219.8,1.82083607]
[1734427567809,2.2747,219.82,219.81,1.13809613]
[1734427568605,2.2752,219.77,219.71,5.3571846]
[1734427568810,21.27613401,219.94,219.72,1.82097754]
[1734427569010,1.614,219.89,219.73,7.21966043]
[1734427569209,2.2755,219.75,219.74,1.82097754]
[1734427570105,2.2755,219.75,219.71,3.8377]
[1734427570310,2.2755,219.75,219.72,1.82118942]
[1734427570509,2.2755,219.75,219.73,1.82118942]
[1734427570707,2.2755,219.75,219.74,1.82118942]
[1734427571113,1.5293,219.88,219.69,5.53359534]
[1734427571413,2.2758,219.71,219.67,0.73528467]
[1734427571910,2.2758,219.72,219.66,2.2762]
[1734427572111,4.5487,219.85,219.61,1.5841]
[1734427572312,21.30242527,219.86,219.61,1.5841]
[1734427572515,13.66,219.84,219.61,1.5841]
[1734427572815,13.66,219.82,219.61,1.5841]
[1734427573014,7.64242527,219.81,219.61,1.5841]
[1734427573516,0.69340838,219.8,219.48,1.5754]
[1734427573717,1.0659,219.8,219.48,3.162]
[1734427573913,13.66,219.78,219.58,5.34843807]
[1734427574112,13.66,219.76,219.48,3.162]
[1734427574318,8.33589946,219.75,219.55,2.2774]
[1734427574512,0.69347419,219.74,219.48,3.162]
[1734427575016,7.64242527,219.75,219.56,5.49569779]
[1734427575210,1.5514,219.77,219.56,5.49569779]
[1734427575211,1.5514,219.77,219.57,3.0558]
[1734427575409,1.5514,219.77,219.67,2.2762]
[1734427575811,2.2758,219.71,219.66,2.2763]
[1734427576213,1.5514,219.77,219.58,1.4974]
[1734427576617,5.48941652,219.85,219.58,1.4974]
[1734427576813,7.64242527,219.86,219.67,5.44102511]
[1734427577019,7.64242527,219.93,219.68,2.9963]
[1734427577217,2.2743,219.86,219.77,2.2751]
[1734427577424,4.1652,219.94,219.77,2.2751]
[1734427577627,0.69283602,219.93,219.69,1.5599]
[1734427577916,0.69283602,219.93,219.79,2.2749]
[1734427577917,2.2743,219.86,219.79,2.2749]
[1734427578313,4.1652,219.94,219.69,1.5599]
[1734427578517,2.274,219.89,219.81,2.2747]
[1734427578722,4.1652,219.94,219.69,1.5599]
[1734427579024,0.69273869,219.93,219.69,1.5599]
[1734427579322,2.2742,219.86,219.79,2.2749]
[1734427580224,2.2743,219.85,219.77,2.2751]
[1734427580425,2.2743,219.85,219.69,1.5599]
[1734427580824,2.2743,219.85,219.7,1.13784719]
[1734427581328,2.2743,219.85,219.71,2.95840237]
[1734427581529,2.2743,219.85,219.77,2.2751]
[1734427581722,2.2743,219.85,219.78,2.95840237]
[1734427581925,2.2743,219.85,219.79,1.13784719]
[1734427582125,2.2743,219.85,219.8,1.13784719]
[1734427582326,2.2743,219.85,219.69,1.5599]
[1734427582530,2.2743,219.85,219.7,2.95840403]
[1734427582732,4.1652,219.94,219.69,1.5599]
[1734427582929,0.69285636,219.93,219.71,1.82055633]
[1734427583123,0.69285636,219.93,219.72,1.1378477]
[1734427583325,2.2744,219.85,219.73,2.95840403]
[1734427583525,2.2744,219.85,219.74,2.95840403]
[1734427583827,2.2739,219.9,219.84,2.2744]
[1734427584231,4.1652,219.94,219.77,1.82055633]
[1734427584431,0.69270045,219.93,219.8,5.3818632]
[1734427584731,7.64242527,219.99,219.81,1.6176]
[1734427584927,2.2734,219.95,219.82,1.13764471]
[1734427585130,2.2734,219.95,219.81,3.0948]
[1734427585630,2.2735,219.94,219.87,2.274]
[1734427586430,2.2735,219.94,219.88,2.274]
[1734427586929,2.2733,219.95,219.88,2.274]
[1734427587125,2.2733,219.95,219.82,1.13755982]
[1734427587338,2.2733,219.95,219.83,1.13755982]
[1734427587630,2.2732,219.96,219.9,2.2738]
[1734427588428,300.0,220.0,219.9,2.2738]
[1734427588728,2.2733,219.95,219.9,2.2738]
[1734427589432,300.0,220.0,219.82,1.13747644]
[1734427589734,300.0,220.0,219.81,3.0948]
[1734427589735,0.69245914,219.99,219.83,1.13747644]
[1734427589940,300.0,220.0,219.84,1.13747644]
[1734427590130,2.2731,219.97,219.92,2.2736]
[1734427590533,300.0,220.0,219.92,5.366013]
[1734427591131,2.273,219.99,219.94,2.2734]
[1734427591330,300.0,220.0,219.92,5.366013]
[1734427591828,2.2729,219.99,219.93,2.2735]
[1734427592031,2.2729,219.99,219.92,5.366013]
[1734427593032,2.2729,219.99,219.94,2.2733]
[1734427593230,300.0,220.0,219.92,5.366013]
[1734427593430,300.0,220.0,219.93,4.6897]
[1734427593629,300.0,220.0,219.98,2.273]
[1734427594330,300.0,220.0,219.99,2.4]
[1734427595235,300.0,220.0,219.96,2.2731]
[1734427595427,300.0,220.0,219.97,2.4]
[1734427596134,300.0,220.0,219.93,4.6897]
[1734427596329,300.0,220.0,219.94,2.4]
[1734427597534,2.2732,219.96,219.94,2.4]
[1734427597931,2.2732,219.97,219.94,2.4]
[1734427600334,300.0,220.0,219.94,2.4]
[1734427600534,2.2732,219.96,219.94,2.4]
[1734427600731,300.0,220.0,219.94,2.4]
[1734427600935,2.2732,219.97,219.94,2.4]
[1734427601330,300.0,220.0,219.94,2.4]
[1734427601537,2.2732,219.96,219.92,5.366013]
[1734427601836,300.0,220.0,219.93,2.4]
[1734427602037,2.2735,219.94,219.92,7.766013]
[1734427602235,302.4,220.0,219.87,1.5236]
[1734427602438,302.4,220.0,219.88,2.4]
[1734427602737,2.2738,219.9,219.88,2.4]
[1734427602930,302.4,220.0,219.88,2.4]
[1734427603238,2.2737,219.92,219.88,2.4]
[1734427603536,2.2737,219.92,219.89,5.47389642]
[1734427606040,2.2737,219.92,219.9,2.34]
[1734427606645,2.2737,219.91,219.9,2.34]
[1734427607144,302.4,220.0,219.91,2.2737]
[1734427607540,300.0,220.0,219.9,2.34]
[1734427607745,2.2731,219.97,219.93,2.2735]
[1734427607948,300.0,220.0,219.9,2.34]
[1734427608239,2.2733,219.96,219.91,2.2737]
[1734427608445,2.2733,219.96,219.9,2.34]
[1734427609035,2.2731,219.97,219.93,2.2735]
[1734427609244,300.0,220.0,219.93,2.2735]
[1734427609750,2.2731,219.98,219.93,2.2735]
[1734427610142,2.2731,219.98,219.9,2.34]
[1734427610548,300.0,220.0,219.9,2.34]
[1734427610549,2.2731,219.97,219.9,2.34]
[1734427611546,2.2731,219.97,219.92,2.2735]
[1734427611944,2.2734,219.95,219.91,2.2737]
[1734427612342,300.0,220.0,219.9,2.34]
[1734427612847,302.2728,220.0,219.95,2.2732]
[1734427613047,302.2728,220.0,219.96,2.34]
[1734427613248,300.0,220.0,219.96,2.34]
[1734427614545,300.0,220.0,219.97,2.273]
[1734427614750,300.0,220.0,219.96,2.34]
[1734427615253,302.2728,220.0,219.96,4.6131]
[1734427615452,300.0,220.0,219.96,2.34]
[1734427615857,300.0,220.0,219.97,2.2731]
[1734427618946,300.0,220.0,219.98,2.273]
[1734427619150,203.04576921,220.0,219.97,1.6197]
[1734427619656,203.04576921,220.0,219.99,2.2729]
[1734427620452,203.04576921,220.0,219.97,3.1314]
[1734427620854,203.04576921,220.0,219.98,2.2729]
[1734427621054,203.04576921,220.0,219.99,5.40588695]
[1734427621257,203.04576921,220.0,219.99,7.74588695]
[1734427623962,203.04576921,220.0,219.99,10.01878695]
[1734427624162,112.10691948,220.0,219.99,10.01878695]
[1734427625258,112.10691948,220.0,219.99,11.15565739]
[1734427625857,25.60437663,220.0,219.99,11.15565739]
[1734427626056,25.60437663,220.0,219.99,8.88275739]
[1734427626662,0.44482,220.11,219.99,8.88275739]
[1734427626861,0.44482,220.11,220.0,2.67207044]
[1734427627064,0.44482,220.11,220.0,1.5352]
[1734427627259,2.2721,220.07,220.02,2.2726]
[1734427628564,2.2721,220.07,220.03,2.2725]
[1734427628858,0.44482,220.11,220.01,2.34]
[1734427629065,0.44482,220.11,220.02,4.43792342]
[1734427629263,0.44482,220.11,220.03,2.95512342]
[1734427629455,0.44482,220.11,220.02,1.4828]
[1734427629456,0.44482,220.11,220.04,2.34]
[1734427629657,0.44482,220.11,220.05,1.13654097]
[1734427629856,0.44482,220.11,220.02,1.4828]
[1734427630058,0.44482,220.11,220.03,5.29514875]
[1734427630258,0.44482,220.11,220.04,1.13659567]
[1734427630457,0.44482,220.11,219.86,7.97108453]
[1734427630458,0.44482,220.11,219.95,2.2733]
[1734427630658,1.91212,220.11,219.96,5.29592087]
[1734427630864,1.91212,220.11,219.97,1.13689264]
[1734427631163,0.69207041,220.1,219.96,2.34]
[1734427631364,0.69207041,220.1,219.97,1.13696382]
[1734427631567,2.2728,220.0,219.96,2.34]
[1734427631865,2.2728,220.0,219.97,1.13695235]
[1734427632066,2.2728,220.0,219.96,2.34]
[1734427632266,2.2728,220.0,219.97,1.13695943]
[1734427632468,2.2728,220.0,219.98,2.34]
[1734427633167,2.2721,220.08,219.98,2.34]
[1734427633366,1.607,220.07,219.98,2.34]
[1734427633772,2.2729,220.0,219.98,2.34]
[1734427633973,1.607,220.07,219.98,2.34]
[1734427635866,1.4673,220.11,219.98,2.34]
[1734427636076,2.16376254,220.1,219.98,2.34]
[1734427636265,0.69206254,220.09,219.98,2.34]
[1734427636667,0.69206254,220.09,219.9,1.6059]
[1734427636668,5.4089147,220.07,219.9,1.6059]
[1734427636870,5.4089147,220.07,219.91,5.25606607]
[1734427637065,1.4717,220.1,219.92,2.95606607]
[1734427637270,1.4717,220.1,219.93,2.95606607]
[1734427637476,1.4717,220.1,219.94,2.95606607]
[1734427637674,1.4717,220.1,219.95,2.95606607]
[1734427637877,2.272,220.08,219.96,5.25606607]
[1734427638078,1.98309,220.11,219.97,2.95606607]
[1734427638276,1.98309,220.11,219.98,2.9557039]
[1734427638576,1.98309,220.11,220.06,2.2721]
[1734427638781,0.51579,220.11,220.07,2.3]
[1734427638975,0.51579,220.11,220.0,1.81875541]
[1734427638976,0.51579,220.11,220.08,2.3]
[1734427639175,0.51579,220.11,220.09,2.3]
[1734427640669,2.2718,220.1,220.0,1.5081]
[1734427640875,0.51579,220.11,220.01,3.43648091]
[1734427641078,0.51579,220.11,220.01,2.3]
[1734427641675,2.272,220.08,220.02,2.2725]
[1734427642775,0.51579,220.11,220.01,2.3]
[1734427642975,2.2719,220.09,220.03,2.2724]
[1734427643377,0.51579,220.11,220.01,2.3]
[1734427643574,0.51579,220.11,220.06,2.2721]
[1734427643782,0.51579,220.11,220.07,2.3]
[1734427644385,0.51579,220.11,220.07,4.5721]
[1734427644783,0.51579,220.11,220.07,2.3]
[1734427645381,0.51579,220.11,220.07,4.572]
[1734427645975,0.51579,220.11,220.09,2.2718]
[1734427646374,0.51579,220.11,220.07,2.3]
[1734427647184,0.51579,220.11,220.07,4.572]
[1734427647580,0.51579,220.11,220.08,2.2719]
[1734427647778,0.51579,220.11,220.07,2.3]
[1734427648575,0.51579,220.11,220.08,2.2719]
[1734427648884,0.51579,220.11,220.07,2.3]
[1734427649383,0.51579,220.11,220.09,2.2718]
[1734427652081,0.51579,220.11,220.08,2.272]
[1734427652478,0.51579,220.11,220.07,2.3]
[1734427652983,0.51579,220.11,220.07,4.572]
[1734427655590,0.51579,220.11,220.07,2.3]
[1734427656391,2.78749,220.11,220.07,2.3]
[1734427657293,0.51579,220.11,220.07,4.572]
[1734427658389,0.51579,220.11,220.07,2.3]
[1734427658594,0.51579,220.11,220.08,2.272]
[1734427658892,0.51579,220.11,220.08,4.572]
[1734427660687,0.51579,220.11,220.09,2.3]
[1734427662596,0.51579,220.11,220.03,1.81826597]
[1734427662896,2.2721,220.07,220.03,2.3]
[1734427663789,2.2721,220.07,219.94,1.4789]
[1734427663790,4.28719,220.11,219.98,2.3]
[1734427663991,2.6402,220.1,219.98,2.3]
[1734427664389,2.2726,220.02,219.98,2.3]
[1734427664791,2.2726,220.02,219.97,43.84442759]
[1734427664995,2.2733,219.95,219.92,5.53234429]
[1734427665190,1.4752,220.01,219.92,5.53234429]
[1734427665395,1.4752,220.01,219.78,1.4728]
[1734427665396,4.8985,220.0,219.85,2.24]
[1734427665595,2.2739,219.9,219.86,1.13731969]
[1734427665798,2.24,219.95,219.85,2.2743]
[1734427665993,2.24,219.95,219.86,1.13736728]
[1734427666296,2.24,219.95,219.85,2.2743]
[1734427666491,2.24,219.95,219.84,2.24]
[1734427666698,2.24,219.95,219.81,2.24]
[1734427666894,2.24,219.95,219.82,1.13753991]
[1734427667200,2.24,219.95,219.77,1.582]
[1734427667201,2.2744,219.85,219.77,3.822]
[1734427667393,2.2744,219.85,219.78,1.13768205]
[1734427667597,2.2744,219.85,219.77,3.822]
[1734427668305,2.2744,219.85,219.77,6.0971]
[1734427668505,2.2745,219.84,219.77,4.5151]
[1734427668803,1.4875,219.89,219.77,2.24]
[1734427669203,2.24,219.96,219.78,2.72182438]
[1734427669394,2.24,219.96,219.79,2.95741377]
[1734427669595,5.37207487,219.98,219.8,2.95740737]
[1734427669905,7.61207487,219.98,219.81,1.13752438]
[1734427670199,2.2734,219.94,219.82,3.37752438]
[1734427670402,2.2734,219.94,219.82,2.24]
[1734427670698,7.61207487,219.98,219.84,2.2743]
[1734427670890,7.61207487,219.98,219.82,2.24]
[1734427671093,7.61207487,219.98,219.78,1.5843]
[1734427671292,7.61207487,219.98,219.79,3.37743976]
[1734427671498,7.61207487,219.98,219.79,2.24]
[1734427671799,2.24,219.97,219.8,1.137463]
[1734427671996,2.24,219.97,219.81,1.137463]
[1734427672296,2.24,219.97,219.79,2.24]
[1734427672600,2.24,219.97,219.8,2.24]
[1734427672901,2.2736,219.92,219.83,2.2744]
[1734427673097,2.24,219.97,219.8,2.24]
[1734427674302,2.24,219.97,219.81,1.13741281]
[1734427674498,2.2734,219.95,219.87,2.2741]
[1734427674703,2.2734,219.95,219.87,2.24]
[1734427674904,7.61207487,219.98,219.87,2.24]
[1734427675699,2.2735,219.94,219.87,2.24]
[1734427677205,2.24,219.97,219.87,2.24]
[1734427677404,2.2735,219.93,219.87,2.24]
[1734427678004,2.24,219.97,219.78,1.5843]
[1734427678306,2.2736,219.92,219.86,2.2741]
[1734427678502,2.24,219.92,219.77,1.81990747]
[1734427678807,4.49198869,219.91,219.67,2.24]
[1734427679007,2.2745,219.84,219.75,2.2753]
[1734427679299,2.24,219.84,219.75,2.2753]
[1734427679702,1.0634,219.9,219.68,2.24]
[1734427680004,2.24,219.89,219.69,1.13793902]
[1734427680206,2.24,219.89,219.7,1.13793902]
[1734427680506,2.24,219.89,219.72,5.38009301]
[1734427680800,2.24,219.89,219.73,2.24]
[1734427680997,2.24,219.89,219.67,1.13793497]
[1734427681300,0.69288054,219.88,219.68,2.24]
[1734427681507,0.69288054,219.88,219.69,2.276]
[1734427682004,0.69298165,219.87,219.69,2.276]
[1734427682209,0.69298165,219.87,219.68,2.24]
[1734427682210,2.2754,219.76,219.7,2.2759]
[1734427682504,2.24,219.78,219.67,2.24]
[1734427683003,2.2756,219.73,219.67,4.5161]
[1734427683304,2.24,219.78,219.67,4.5161]
[1734427683505,2.2757,219.72,219.66,4.6033]
[1734427683707,2.2757,219.72,219.66,6.8796]
[1734427683912,2.24,219.78,219.66,3.124]
[1734427684104,2.2752,219.77,219.72,2.2756]
[1734427684304,2.24,219.82,219.72,2.2756]
[1734427684505,2.24,219.83,219.71,2.24]
[1734427685405,2.2749,219.81,219.71,2.24]
[1734427685612,2.24,219.83,219.71,2.24]
[1734427685909,2.24,219.83,219.74,2.2754]
[1734427686109,2.24,219.83,219.71,2.24]
[1734427686305,2.24,219.83,219.73,2.2756]
[1734427686306,2.2751,219.78,219.73,2.2756]
[1734427686504,2.2751,219.78,219.71,2.24]
[1734427686810,2.24,219.83,219.71,2.24]
[1734427687113,2.2753,219.76,219.71,2.24]
[1734427687309,2.24,219.83,219.71,2.24]
[1734427687807,2.24,219.83,219.69,2.276]
[1734427688013,2.2753,219.76,219.7,4.5159]
[1734427688209,2.24,219.83,219.7,2.24]
[1734427688412,2.24,219.83,219.66,3.124]
[1734427688813,0.69317049,219.82,219.66,1.6067]
[1734427689014,0.69317049,219.82,219.65,2.24]
[1734427689217,2.2762,219.68,219.65,2.24]
[1734427689607,1.6139,219.86,219.65,2.24]
[1734427689914,2.2752,219.77,219.65,2.24]
[1734427690410,2.24,219.85,219.65,2.24]
[1734427690610,5.41600179,219.87,219.66,1.13848766]
[1734427690919,5.41600179,219.87,219.67,1.13848766]
[1734427690920,2.2742,219.87,219.67,1.13848766]
[1734427691212,2.2742,219.87,219.68,53.17848766]
[1734427691405,2.24,219.96,219.69,2.9598843]
[1734427691610,2.2742,219.86,219.79,2.2749]
[1734427691810,2.24,219.96,219.8,3.8181]
[1734427692005,2.24,219.96,219.81,2.24]
[1734427692411,3.0596,219.97,219.81,2.24]
[1734427692611,2.24,219.96,219.81,4.5148]
[1734427692812,3.0596,219.97,219.81,4.5148]
[1734427693012,2.24,219.96,219.81,2.24]
[1734427693312,2.2743,219.86,219.81,2.24]
[1734427693710,2.2743,219.86,219.8,1.5781]
[1734427694017,2.24,219.96,219.82,2.24]
[1734427694313,2.24,220.02,219.83,1.6072]
[1734427694515,4.5423,220.17,219.83,3.1291]
[1734427694516,5.2344,220.05,219.83,3.1291]
[1734427694814,5.2344,220.05,219.84,1.13713806]
[1734427695013,5.2344,220.05,219.83,3.1291]
[1734427695211,2.2728,220.0,219.84,1.1371498]
[1734427695413,5.53107802,220.03,219.85,1.1371498]
[1734427695711,5.53107802,220.03,219.91,2.2737]
[1734427695712,2.2727,220.01,219.91,2.2737]
[1734427695910,65.68,220.2,219.92,3.8668]
[1734427696115,2.28,220.08,219.93,3.7957]
[1734427696308,2.28,220.08,219.94,2.2733]
[1734427696815,1.0659,220.14,219.94,2.2733]
[1734427697011,1.0659,220.14,219.93,3.7957]
[1734427697212,1.0659,220.14,219.94,1.5219]
[1734427697715,2.2721,220.07,219.99,2.2728]
[1734427697911,2.2721,220.07,220.0,2.28]
[1734427698212,5.42547655,220.11,220.0,2.28]
[1734427698418,2.2724,220.04,220.0,2.28]
[1734427698615,5.42547655,220.11,220.0,2.28]
[1734427698916,2.2722,220.06,220.0,2.28]
[1734427699614,5.42547655,220.11,219.94,1.5219]
[1734427699924,2.2724,220.04,219.97,2.273]
[1734427704218,5.42547655,220.11,219.95,7.7982384]
[1734427704417,2.2723,220.06,219.99,2.2729]
[1734427704620,5.42547655,220.11,220.0,2.28]
[1734427704913,5.42547655,220.11,220.01,2.28]
[1734427705118,2.2721,220.07,220.01,2.28]
[1734427705316,2.9835,220.16,220.01,2.28]
[1734427705721,2.272,220.08,220.02,2.2726]
[1734427706419,2.66529,220.1,220.04,2.2724]
[1734427706920,2.272,220.08,220.02,3.7435]
[1734427707217,0.39349,220.1,220.03,2.26]
[1734427708015,2.2721,220.08,220.03,2.26]
[1734427709424,4.5401,220.27,220.03,2.26]
[1734427709621,6.04455283,220.24,220.04,1.481]
[1734427709923,0.69185283,220.23,220.04,1.481]
[1734427710121,5.55676782,220.17,220.05,1.5732]
[1734427710421,0.69185283,220.16,220.05,1.5732]
[1734427711121,2.2718,220.1,220.05,3.8454]
[1734427711622,7.42279696,220.23,220.05,3.8454]
[1734427711623,4.5386,220.35,220.06,51.98]
[1734427711921,4.5386,220.35,220.06,92.61879374]
[1734427711922,0.64894,220.22,220.06,92.61879374]
[1734427712129,8.48200494,220.35,220.07,2.26]
[1734427712420,8.48200494,220.35,220.18,5.3536262]
[1734427712421,0.69162857,220.34,220.18,5.3536262]
[1734427712613,0.69162857,220.34,220.19,3.1096]
[1734427712819,10.89930843,220.36,220.2,2.26]
[1734427713219,10.89930843,220.36,220.25,2.2702]
[1734427713420,10.89930843,220.36,220.26,2.26]
[1734427713615,10.89930843,220.36,220.27,2.26]
[1734427713824,10.89930843,220.36,220.28,2.26]
[1734427714020,10.89930843,220.36,220.27,2.26]
[1734427714217,10.89930843,220.36,220.26,2.26]
[1734427714423,10.89930843,220.36,220.27,2.26]
[1734427714726,10.89930843,220.36,220.28,2.26]
[1734427715420,10.89930843,220.36,220.22,2.26]
[1734427715617,13.15930843,220.36,220.22,2.26]
[1734427716215,13.15930843,220.36,220.19,3.1096]
[1734427716216,13.15930843,220.36,220.23,2.26]
[1734427717519,10.89930843,220.36,220.23,2.26]
[1734427719023,2.2698,220.29,220.23,2.26]
[1734427719223,10.89930843,220.36,220.23,2.26]
[1734427720024,2.2696,220.32,220.23,4.5304]
[1734427720328,10.89930843,220.36,220.24,2.26]
[1734427720529,2.2701,220.26,220.25,2.26]
[1734427720731,2.2701,220.26,220.2,1.4986]
[1734427720732,10.89930843,220.36,220.24,2.26]
[1734427721331,2.2701,220.26,220.24,2.26]
[1734427723834,10.89930843,220.36,220.2,1.4986]
[1734427724040,10.89930843,220.36,220.21,2.26]
[1734427724541,2.2702,220.26,220.21,2.26]
[1734427724835,10.89930843,220.36,220.21,2.26]
[1734427725032,2.2703,220.24,220.21,2.26]
[1734427725236,2.2703,220.24,220.22,2.3]
[1734427725433,1.5798,220.35,220.22,2.3]
[1734427725937,10.89930843,220.36,220.22,2.3]
[1734427727243,10.89930843,220.36,220.23,2.2703]
[1734427727638,10.89930843,220.36,220.22,2.3]
[1734427728035,10.89930843,220.36,220.25,2.2702]
[1734427728237,10.89930843,220.36,220.22,2.3]
[1734427728436,2.2695,220.33,220.24,2.2702]
[1734427729334,2.2695,220.32,220.24,2.2702]
[1734427730046,10.89930843,220.36,220.24,2.2702]
[1734427730246,10.89930843,220.36,220.23,2.2704]
[1734427730443,10.89930843,220.36,220.2,1.4986]
[1734427730650,2.2702,220.25,220.24,5.41670072]
[1734427730848,10.89930843,220.36,220.24,5.41670072]
[1734427731141,2.2699,220.29,220.24,5.41670072]
[1734427731342,10.89930843,220.36,220.24,5.41670072]
[1734427731542,2.3,220.35,220.21,2.3]
[1734427731743,5.359,220.35,220.21,2.3]
[1734427732544,5.359,220.35,220.22,5.4101621]
[1734427733244,5.359,220.35,220.21,2.3]
[1734427734048,2.2696,220.31,220.21,2.3]
[1734427734351,5.359,220.35,220.21,2.3]
[1734427734649,5.359,220.35,220.21,7.68819375]
[1734427736952,3.059,220.35,220.22,2.2705]
[1734427737245,10.89930843,220.36,220.23,2.95218626]
[1734427737550,10.89930843,220.36,220.24,3.86028651]
[1734427737853,10.89930843,220.36,220.25,2.95218626]
[1734427738146,2.2693,220.34,220.27,2.27]
[1734427738355,10.89930843,220.36,220.28,2.95218626]
[1734427738543,10.89930843,220.36,220.29,1.5656]
[1734427738748,10.89930843,220.36,220.3,3.43528854]
[1734427738946,10.89930843,220.36,220.3,2.3]
[1734427739157,10.89930843,220.36,220.31,1.1352932]
[1734427739354,10.89930843,220.36,220.3,2.3]
[1734427739855,10.89930843,220.36,220.31,1.13528829]
[1734427740055,10.89930843,220.36,220.3,2.3]
[1734427740252,2.2692,220.35,220.31,1.13529687]
[1734427740454,2.2692,220.35,220.3,2.3]
[1734427740648,2.2692,220.35,220.31,1.13529687]
[1734427740956,4.594,220.51,220.33,5.31419454]
[1734427741165,4.594,220.51,220.34,1.13513207]
[1734427741455,4.594,220.51,220.33,5.31419454]
[1734427741456,4.594,220.51,220.35,2.3]
[1734427741651,2.2686,220.41,220.35,2.3]
[1734427742052,4.594,220.51,220.36,1.13505355]
[1734427742249,4.594,220.51,220.35,2.3]
[1734427742648,4.594,220.51,220.36,2.3]
[1734427742851,9.98808539,220.51,220.36,2.3]
[1734427743361,2.2687,220.41,220.36,2.3]
[1734427743958,9.98808539,220.51,220.36,2.3]
[1734427744154,2.2687,220.4,220.36,2.3]
[1734427744359,2.2687,220.4,220.37,2.28]
[1734427745862,9.98808539,220.51,220.37,2.28]
[1734427746756,2.2685,220.42,220.37,2.28]
[1734427747555,2.2687,220.41,220.37,2.28]
[1734427749465,2.2687,220.4,220.37,2.28]
[1734427749765,2.2687,220.4,220.38,2.28]
[1734427752163,2.2686,220.41,220.38,2.28]
[1734427754862,7.20902183,220.5,220.38,2.28]
[1734427755667,2.2686,220.41,220.38,2.28]
[1734427756163,7.20902183,220.5,220.38,2.28]
[1734427756365,0.68536653,220.49,220.37,2.28]
[1734427756871,2.2689,220.39,220.37,2.28]
[1734427758268,2.2689,220.38,220.34,2.2693]
[1734427758473,2.28,220.48,220.35,2.28]
[1734427758871,2.2688,220.39,220.35,2.28]
[1734427759767,2.2689,220.38,220.35,2.28]
[1734427759977,2.28,220.48,220.35,2.28]
[1734427760470,2.2688,220.39,220.35,4.5491]
[1734427760868,2.28,220.48,220.35,2.28]
[1734427760869,2.2689,220.38,220.35,2.28]
[1734427761065,2.28,220.48,220.33,7.59419454]
[1734427761569,2.269,220.37,220.33,9.86349454]
[1734427761966,2.28,220.48,220.33,7.58349454]
[1734427762272,2.269,220.37,220.34,2.28]
[1734427762864,2.269,220.37,220.33,7.58349454]
[1734427763064,2.28,220.48,220.34,2.28]
[1734427763264,0.68542963,220.47,220.34,2.28]
[1734427763770,2.2692,220.36,220.34,2.28]
[1734427764168,2.28,220.41,220.23,1.5948]
[1734427764367,7.67894404,220.4,220.25,1.13533473]
[1734427764571,6.9933,220.4,220.24,3.18810025]
[1734427764870,6.9933,220.4,220.24,0.90810025]
[1734427765078,6.9933,220.4,220.12,4.5431]
[1734427765079,0.68565778,220.39,220.21,7.66819375]
[1734427765776,2.2701,220.27,220.23,2.2704]
[1734427766166,2.2701,220.27,220.21,7.66819375]
[1734427766167,2.28,220.33,220.21,5.38819375]
[1734427766373,2.2703,220.24,220.11,4.5351]
[1734427766576,2.28,220.33,220.12,5.23281818]
[1734427766771,0.68589948,220.32,220.13,2.95281818]
[1734427767072,0.68589948,220.32,220.18,2.2709]
[1734427767272,1.4936,220.31,220.18,4.5509]